[Event "FIDE Women World Blitz 2021"]
[Site "Warsaw"]
[Date "2021.12.30"]
[Round "14.31"]
[White "Antolak, Julia"]
[Black "Cyfka, Karina"]
[Result "1/2-1/2"]
[ECO "C86"]
[WhiteElo "2334"]
[BlackElo "2416"]
[Annotator "NA"]
[PlyCount "129"]
[EventDate "2021.12.29"]
[EventType "swiss"]
[EventCountry "POL"]
[Tiebreak "Cut1 Buchholz"]
[SourceTitle "playchess.com"]
[Source "ChessBase"]
[SourceQuality "1"]
[TimeControl "180+2"]

1. e4 {[%emt 0:00:01]} e5 {[%emt 0:00:01]} 2. Nf3 {[%emt 0:00:01]} Nc6 {
[%emt 0:00:02]} 3. Bb5 {[%emt 0:00:01]} a6 {[%emt 0:00:01]} 4. Ba4 {[%emt 0:00:
01]} Nf6 {[%emt 0:00:01]} 5. d3 {[%emt 0:00:01]} b5 {[%emt 0:00:03]} 6. Bb3 {
[%emt 0:00:01]} Be7 {[%emt 0:00:01]} 7. c3 {[%emt 0:00:05]} O-O {[%emt 0:00:02]
} 8. h3 {[%emt 0:00:01]} d5 {[%emt 0:00:06]} 9. Qe2 {[%emt 0:00:06]} d4 {
[%emt 0:00:25]} 10. O-O {[%emt 0:00:06]} h6 {[%emt 0:00:02]} 11. Rd1 {[%emt 0:
00:04]} Bc5 {[%emt 0:00:05]} 12. Nbd2 {[%emt 0:00:13]} Qe7 {[%emt 0:00:16]} 13.
Nf1 {[%emt 0:00:03]} Kh7 {[%emt 0:00:12]} 14. cxd4 {[%emt 0:00:03]} Nxd4 {
[%emt 0:00:03]} 15. Nxd4 {[%emt 0:00:03]} Bxd4 {[%emt 0:00:03]} 16. Be3 {
[%emt 0:00:09]} c5 {[%emt 0:00:07]} 17. Rac1 {[%emt 0:00:03]} Be6 {[%emt 0:00:
03]} 18. Bxe6 {[%emt 0:00:06]} Qxe6 {[%emt 0:00:01]} 19. Bxd4 {[%emt 0:00:04]}
cxd4 {[%emt 0:00:02]} 20. b3 {[%emt 0:00:17]} Rac8 {[%emt 0:00:04]} 21. Qb2 {
[%emt 0:00:06]} Nh5 {[%emt 0:00:11]} 22. Ng3 {[%emt 0:00:40]} Nxg3 {[%emt 0:00:
20]} 23. fxg3 {[%emt 0:00:01]} f5 {[%emt 0:00:05]} 24. exf5 {[%emt 0:00:09]}
Qxf5 {[%emt 0:00:03]} 25. Qe2 {[%emt 0:00:10]} Qg5 {[%emt 0:00:13]} 26. Rxc8 {
[%emt 0:00:10]} Rxc8 {[%emt 0:00:02]} 27. Kh2 {[%emt 0:00:07]} Kh8 {[%emt 0:00:
19]} 28. Re1 {[%emt 0:00:03]} Re8 {[%emt 0:00:07]} 29. Qe4 {[%emt 0:00:06]} Qf6
{[%emt 0:00:13]} 30. Rc1 {[%emt 0:00:11]} Qf2 {[%emt 0:00:08]} 31. a4 {[%emt 0:
00:26]} bxa4 {[%emt 0:00:03]} 32. bxa4 {[%emt 0:00:00]} a5 {[%emt 0:00:14]} 33.
Qg6 {[%emt 0:00:08]} Rg8 {[%emt 0:00:15]} 34. Rc5 {[%emt 0:00:01]} Qe1 {
[%emt 0:00:08]} 35. Qf5 {[%emt 0:00:13]} Re8 {[%emt 0:00:03]} 36. Rc7 {[%emt 0:
00:03]} Qe3 {[%emt 0:00:04]} 37. Ra7 {[%emt 0:00:04]} e4 {[%emt 0:00:02]} 38.
dxe4 {[%emt 0:00:05]} Qxe4 {[%emt 0:00:01]} 39. Qf7 {[%emt 0:00:02]} Rg8 {
[%emt 0:00:01]} 40. Rxa5 {[%emt 0:00:03]} d3 {[%emt 0:00:01]} 41. Qd5 {[%emt 0:
00:02]} Qxd5 {[%emt 0:00:04]} 42. Rxd5 {[%emt 0:00:01]} Ra8 {[%emt 0:00:00]}
43. a5 {[%emt 0:00:02]} d2 44. Rxd2 Rxa5 45. g4 {[%emt 0:00:03]} Kh7 {[%emt 0:
00:03]} 46. Kg3 {[%emt 0:00:01]} Rb5 {[%emt 0:00:02]} 47. Rd3 {[%emt 0:00:01]}
Ra5 {[%emt 0:00:01]} 48. h4 {[%emt 0:00:01]} Rb5 {[%emt 0:00:01]} 49. Rf3 {
[%emt 0:00:02]} Ra5 {[%emt 0:00:01]} 50. Kh3 {[%emt 0:00:01]} Rb5 {[%emt 0:00:
00]} 51. g3 {[%emt 0:00:02]} Ra5 {[%emt 0:00:01]} 52. Re3 {[%emt 0:00:03]} Rb5
{[%emt 0:00:00]} 53. Kg2 {[%emt 0:00:02]} Rb2+ {[%emt 0:00:01]} 54. Kf3 {
[%emt 0:00:01]} Rb4 {[%emt 0:00:02]} 55. Re4 {[%emt 0:00:02]} Rb5 {[%emt 0:00:
10]} 56. Kf4 {[%emt 0:00:02]} Ra5 {[%emt 0:00:01]} 57. Re5 {[%emt 0:00:07]}
Ra4+ {[%emt 0:00:00]} 58. Kf5 {[%emt 0:00:02]} Ra3 {[%emt 0:00:03]} 59. Kf4 {
[%emt 0:00:02]} Ra4+ {[%emt 0:00:01]} 60. Re4 {[%emt 0:00:01]} Ra5 {[%emt 0:00:
01]} 61. Rd4 {[%emt 0:00:01]} Rb5 {[%emt 0:00:00]} 62. Kf3 {[%emt 0:00:01]}
Rb3+ {[%emt 0:00:02]} 63. Kf4 {[%emt 0:00:01]} Rb5 {[%emt 0:00:00]} 64. Re4 {
[%emt 0:00:02]} Ra5 {[%emt 0:00:01]} 65. Rd4 {[%emt 0:00:01]} 1/2-1/2

[Event "FIDE Women World Blitz 2021"]
[Site "Warsaw"]
[Date "2021.12.30"]
[Round "14.32"]
[White "Yakimova, Mariya"]
[Black "Dworakowska, Joanna"]
[Result "0-1"]
[ECO "A90"]
[WhiteElo "2219"]
[BlackElo "2228"]
[Annotator "NA"]
[PlyCount "70"]
[EventDate "2021.12.29"]
[EventType "swiss"]
[EventCountry "POL"]
[Tiebreak "Cut1 Buchholz"]
[SourceTitle "playchess.com"]
[Source "ChessBase"]
[SourceQuality "1"]
[TimeControl "180+2"]

1. d4 {[%emt 0:00:02]} d5 {[%emt 0:00:01]} 2. c4 {[%emt 0:00:01]} e6 {[%emt 0:
00:00]} 3. Nf3 {[%emt 0:00:01]} c6 {[%emt 0:00:04]} 4. g3 {[%emt 0:00:01]} Bd6
{[%emt 0:00:02]} 5. Bg2 {[%emt 0:00:02]} f5 {[%emt 0:00:07]} 6. O-O {[%emt 0:
00:03]} Nf6 {[%emt 0:00:01]} 7. b3 {[%emt 0:00:01]} Qe7 {[%emt 0:00:02]} 8. Bb2
{[%emt 0:00:04]} O-O {[%emt 0:00:02]} 9. Nbd2 {[%emt 0:00:01]} Bd7 {[%emt 0:00:
04]} 10. Ne5 {[%emt 0:00:01]} Be8 {[%emt 0:00:03]} 11. Qc2 {[%emt 0:00:10]} Ne4
{[%emt 0:00:07]} 12. Nxe4 {[%emt 0:00:11]} fxe4 {[%emt 0:00:05]} 13. f3 {
[%emt 0:00:01]} exf3 {[%emt 0:00:50]} 14. exf3 {[%emt 0:00:01]} Nd7 {[%emt 0:
00:12]} 15. Rae1 {[%emt 0:00:01]} Nxe5 {[%emt 0:00:03]} 16. dxe5 {[%emt 0:00:
01]} Bc5+ {[%emt 0:00:09]} 17. Kh1 {[%emt 0:00:01]} Bg6 {[%emt 0:00:04]} 18.
Qc1 {[%emt 0:00:01]} d4 {[%emt 0:00:10]} 19. f4 {[%emt 0:00:08]} Rad8 {[%emt 0:
00:13]} 20. Rd1 {[%emt 0:00:01]} d3 {[%emt 0:00:19]} 21. a3 {[%emt 0:00:23]} a5
{[%emt 0:00:09]} 22. Qc3 {[%emt 0:00:18]} b6 {[%emt 0:00:10]} 23. Qc1 {[%emt 0:
00:16]} Rc8 {[%emt 0:00:06]} 24. Rfe1 {[%emt 0:00:14]} h5 {[%emt 0:00:02]} 25.
Be4 {[%emt 0:00:04]} Bxe4+ {[%emt 0:00:08]} 26. Rxe4 {[%emt 0:00:01]} Rcd8 {
[%emt 0:00:02]} 27. Rd2 {[%emt 0:00:07]} Qf7 {[%emt 0:00:02]} 28. Qd1 {[%emt 0:
00:15]} Qg6 {[%emt 0:00:02]} 29. Qf3 {[%emt 0:00:06]} Rf7 {[%emt 0:00:06]} 30.
Rxd3 {[%emt 0:00:07]} Rxd3 {[%emt 0:00:07]} 31. Qxd3 {[%emt 0:00:00]} Rd7 {
[%emt 0:00:01]} 32. Qe2 {[%emt 0:00:44]} Rd1+ {[%emt 0:00:03]} 33. Kg2 {
[%emt 0:00:02]} Rg1+ {[%emt 0:00:01]} 34. Kh3 {[%emt 0:00:05]} Qf5+ {[%emt 0:
00:05]} 35. Kh4 {[%emt 0:00:15]} Be7# {[%emt 0:00:01]} 0-1

[Event "FIDE Women World Blitz 2021"]
[Site "Warsaw"]
[Date "2021.12.30"]
[Round "14.33"]
[White "Fernandez, Maria Florencia"]
[Black "Dylag, Emilia"]
[Result "1-0"]
[ECO "E52"]
[WhiteElo "2184"]
[BlackElo "1863"]
[Annotator "NA"]
[PlyCount "93"]
[EventDate "2021.12.29"]
[EventType "swiss"]
[EventCountry "POL"]
[Tiebreak "Cut1 Buchholz"]
[SourceTitle "playchess.com"]
[Source "ChessBase"]
[SourceQuality "1"]
[TimeControl "180+2"]

1. d4 {[%emt 0:00:02]} d5 {[%emt 0:00:01]} 2. c4 {[%emt 0:00:01]} e6 {[%emt 0:
00:01]} 3. Nc3 {[%emt 0:00:01]} Bb4 {[%emt 0:00:02]} 4. Nf3 {[%emt 0:00:03]}
Nf6 {[%emt 0:00:01]} 5. e3 {[%emt 0:00:07]} O-O {[%emt 0:00:06]} 6. Bd3 {
[%emt 0:00:01]} b6 {[%emt 0:00:06]} 7. cxd5 {[%emt 0:00:02]} exd5 {[%emt 0:00:
01]} 8. O-O {[%emt 0:00:01]} Bb7 {[%emt 0:00:02]} 9. Ne5 {[%emt 0:00:05]} Nbd7
{[%emt 0:00:19]} 10. f4 {[%emt 0:00:01]} Be7 {[%emt 0:00:29]} 11. Qf3 {[%emt 0:
00:07]} c5 {[%emt 0:00:09]} 12. g4 {[%emt 0:00:07]} cxd4 {[%emt 0:00:36]} 13.
exd4 {[%emt 0:00:03]} Ne4 {[%emt 0:00:35]} 14. Be3 {[%emt 0:00:27]} Nxe5 {
[%emt 0:00:09]} 15. fxe5 {[%emt 0:00:05]} Nxc3 {[%emt 0:00:11]} 16. bxc3 {
[%emt 0:00:01]} Rc8 {[%emt 0:00:10]} 17. Rac1 {[%emt 0:00:04]} g6 {[%emt 0:00:
14]} 18. Rc2 {[%emt 0:00:18]} Bg5 {[%emt 0:00:04]} 19. Bf2 {[%emt 0:00:00]} Qe7
{[%emt 0:00:07]} 20. Bg3 {[%emt 0:00:08]} Qa3 {[%emt 0:00:05]} 21. Be1 {
[%emt 0:00:14]} Qe7 {[%emt 0:00:07]} 22. Qg3 {[%emt 0:00:21]} Qd7 {[%emt 0:00:
06]} 23. h4 {[%emt 0:00:04]} Be7 {[%emt 0:00:01]} 24. h5 {[%emt 0:00:08]} Bc6 {
[%emt 0:00:02]} 25. Rh2 {[%emt 0:00:05]} Bb5 {[%emt 0:00:03]} 26. hxg6 {
[%emt 0:00:16]} fxg6 {[%emt 0:00:01]} 27. Rxf8+ {[%emt 0:00:12]} Rxf8 {[%emt 0:
00:01]} 28. e6 {[%emt 0:00:03]} Qc6 {[%emt 0:00:02]} 29. Qh3 {[%emt 0:00:07]}
h5 {[%emt 0:00:06]} 30. gxh5 {[%emt 0:00:06]} Bxd3 {[%emt 0:00:01]} 31. Qxd3 {
[%emt 0:00:01]} Qxe6 {[%emt 0:00:02]} 32. Qxg6+ {[%emt 0:00:18]} Qxg6+ {
[%emt 0:00:01]} 33. hxg6 {[%emt 0:00:00]} Bf6 {[%emt 0:00:02]} 34. Rh5 {
[%emt 0:00:08]} Rd8 {[%emt 0:00:01]} 35. Rh7 {[%emt 0:00:04]} a5 {[%emt 0:00:
02]} 36. Rb7 {[%emt 0:00:02]} Rd6 {[%emt 0:00:01]} 37. Bg3 {[%emt 0:00:02]} Rc6
{[%emt 0:00:00]} 38. Be1 {[%emt 0:00:06]} Bg5 {[%emt 0:00:01]} 39. Kg2 {
[%emt 0:00:04]} Bc1 {[%emt 0:00:02]} 40. Kf3 {[%emt 0:00:02]} Bb2 {[%emt 0:00:
01]} 41. Kg4 {[%emt 0:00:05]} Rxg6+ {[%emt 0:00:01]} 42. Kf5 {[%emt 0:00:01]}
Rc6 {[%emt 0:00:01]} 43. Bg3 {[%emt 0:00:05]} Bxc3 {[%emt 0:00:01]} 44. Be5 {
[%emt 0:00:01]} Bb4 {[%emt 0:00:09]} 45. Bf6 {[%emt 0:00:04]} Bc3 {[%emt 0:00:
05]} 46. Kg6 {[%emt 0:00:02]} Rc8 {[%emt 0:00:02]} 47. Rh7 {[%emt 0:00:06]} 1-0

[Event "FIDE Women World Blitz 2021"]
[Site "Warsaw"]
[Date "2021.12.30"]
[Round "14.34"]
[White "Smirnova, Ekaterina"]
[Black "Maisuradze, Nino"]
[Result "0-1"]
[ECO "A67"]
[WhiteElo "2196"]
[BlackElo "2175"]
[Annotator "NA"]
[PlyCount "184"]
[EventDate "2021.12.29"]
[EventType "swiss"]
[EventCountry "POL"]
[Tiebreak "Cut1 Buchholz"]
[SourceTitle "playchess.com"]
[Source "ChessBase"]
[SourceQuality "1"]
[TimeControl "180+2"]

1. d4 {[%emt 0:00:01]} Nf6 {[%emt 0:00:00]} 2. c4 {[%emt 0:00:01]} c5 {[%emt 0:
00:01]} 3. d5 {[%emt 0:00:00]} e6 {[%emt 0:00:00]} 4. Nc3 {[%emt 0:00:01]} exd5
{[%emt 0:00:00]} 5. cxd5 {[%emt 0:00:01]} d6 {[%emt 0:00:01]} 6. e4 {[%emt 0:
00:02]} g6 {[%emt 0:00:00]} 7. Bb5+ {[%emt 0:00:01]} Nfd7 {[%emt 0:00:05]} 8.
f4 {[%emt 0:00:05]} a6 {[%emt 0:00:02]} 9. Bd3 {[%emt 0:00:02]} b5 {[%emt 0:00:
00]} 10. a3 {[%emt 0:00:02]} Bg7 {[%emt 0:00:02]} 11. Nf3 {[%emt 0:00:01]} O-O
{[%emt 0:00:03]} 12. O-O {[%emt 0:00:02]} Nb6 {[%emt 0:00:03]} 13. f5 {[%emt 0:
00:10]} N8d7 {[%emt 0:00:13]} 14. Bg5 {[%emt 0:00:09]} Bf6 {[%emt 0:00:52]} 15.
h4 {[%emt 0:00:04]} Nc4 {[%emt 0:01:15]} 16. Bxc4 {[%emt 0:00:47]} bxc4 {
[%emt 0:00:00]} 17. Qe2 {[%emt 0:00:31]} Rb8 {[%emt 0:00:01]} 18. Rab1 {
[%emt 0:00:04]} Nb6 {[%emt 0:00:17]} 19. Bxf6 {[%emt 0:00:28]} Qxf6 {[%emt 0:
00:01]} 20. e5 {[%emt 0:00:03]} Qxf5 {[%emt 0:00:04]} 21. exd6 {[%emt 0:00:13]}
Qd3 {[%emt 0:00:08]} 22. Qe7 {[%emt 0:00:25]} Rb7 {[%emt 0:00:05]} 23. Qg5 {
[%emt 0:00:10]} f6 {[%emt 0:00:04]} 24. Qg3 {[%emt 0:00:05]} Nxd5 {[%emt 0:00:
03]} 25. Nxd5 {[%emt 0:00:03]} Qxd5 {[%emt 0:00:00]} 26. Rbd1 {[%emt 0:00:04]}
Qc6 {[%emt 0:00:05]} 27. h5 {[%emt 0:00:01]} Rg7 {[%emt 0:00:01]} 28. h6 {
[%emt 0:00:02]} Rd7 {[%emt 0:00:02]} 29. Rfe1 {[%emt 0:00:01]} Bb7 {[%emt 0:00:
03]} 30. Re7 {[%emt 0:00:02]} Rfd8 {[%emt 0:00:04]} 31. Rde1 {[%emt 0:00:02]}
Rxd6 {[%emt 0:00:08]} 32. Nh4 {[%emt 0:00:06]} R6d7 {[%emt 0:00:10]} 33. Nxg6 {
[%emt 0:00:02]} Qxg2+ {[%emt 0:00:01]} 34. Qxg2 {[%emt 0:00:01]} Bxg2 {[%emt 0:
00:01]} 35. Re8+ {[%emt 0:00:09]} Rxe8 {[%emt 0:00:04]} 36. Rxe8+ {[%emt 0:00:
02]} Kf7 {[%emt 0:00:00]} 37. Rf8+ {[%emt 0:00:07]} Kxg6 {[%emt 0:00:02]} 38.
Kxg2 {[%emt 0:00:01]} Rd2+ {[%emt 0:00:02]} 39. Kf3 {[%emt 0:00:01]} Rxb2 {
[%emt 0:00:00]} 40. Rc8 {[%emt 0:00:01]} Rb3+ {[%emt 0:00:01]} 41. Ke4 {
[%emt 0:00:00]} Rxa3 {[%emt 0:00:01]} 42. Rxc5 {[%emt 0:00:01]} Kxh6 {[%emt 0:
00:03]} 43. Rxc4 {[%emt 0:00:01]} a5 {[%emt 0:00:03]} 44. Kf5 {[%emt 0:00:01]}
Rf3+ {[%emt 0:00:01]} 45. Kg4 {[%emt 0:00:02]} Re3 {[%emt 0:00:05]} 46. Kf5 {
[%emt 0:00:03]} Rf3+ {[%emt 0:00:01]} 47. Kg4 {[%emt 0:00:01]} Rb3 {[%emt 0:00:
00]} 48. Rc5 {[%emt 0:00:06]} a4 {[%emt 0:00:08]} 49. Ra5 {[%emt 0:00:01]} a3 {
[%emt 0:00:04]} 50. Kf5 {[%emt 0:00:01]} Rf3+ {[%emt 0:00:02]} 51. Kg4 {
[%emt 0:00:01]} Re3 {[%emt 0:00:03]} 52. Ra6 {[%emt 0:00:03]} Kg6 {[%emt 0:00:
01]} 53. Kf4 {[%emt 0:00:02]} Rb3 {[%emt 0:00:01]} 54. Kg4 {[%emt 0:00:02]} h5+
{[%emt 0:00:03]} 55. Kh4 {[%emt 0:00:03]} Rd3 {[%emt 0:00:02]} 56. Rxa3 {
[%emt 0:00:04]} Rd4+ {[%emt 0:00:03]} 57. Kg3 {[%emt 0:00:02]} Kg5 {[%emt 0:00:
02]} 58. Ra8 {[%emt 0:00:01]} Rg4+ {[%emt 0:00:01]} 59. Kf3 {[%emt 0:00:01]}
Rf4+ {[%emt 0:00:03]} 60. Kg3 {[%emt 0:00:01]} h4+ {[%emt 0:00:00]} 61. Kh3 {
[%emt 0:00:01]} Rf3+ {[%emt 0:00:01]} 62. Kg2 {[%emt 0:00:01]} Rg3+ {[%emt 0:
00:05]} 63. Kf2 {[%emt 0:00:02]} f5 {[%emt 0:00:02]} 64. Rg8+ {[%emt 0:00:04]}
Kf4 {[%emt 0:00:00]} 65. Ra8 {[%emt 0:00:01]} Rg6 {[%emt 0:00:04]} 66. Ra4+ {
[%emt 0:00:02]} Kg5 {[%emt 0:00:01]} 67. Kg2 {[%emt 0:00:01]} f4 {[%emt 0:00:
02]} 68. Kf3 {[%emt 0:00:02]} h3 {[%emt 0:00:02]} 69. Ra1 {[%emt 0:00:03]} Kh4
{[%emt 0:00:05]} 70. Ra2 {[%emt 0:00:04]} Rg3+ {[%emt 0:00:03]} 71. Kxf4 {
[%emt 0:00:06]} Rg2 {[%emt 0:00:01]} 72. Ra8 {[%emt 0:00:03]} Rf2+ {[%emt 0:00:
01]} 73. Ke3 {[%emt 0:00:01]} Rf1 {[%emt 0:00:02]} 74. Rh8+ {[%emt 0:00:01]}
Kg3 {[%emt 0:00:01]} 75. Rg8+ {[%emt 0:00:02]} Kh2 {[%emt 0:00:01]} 76. Ke2 {
[%emt 0:00:01]} Rf7 {[%emt 0:00:01]} 77. Rg6 {[%emt 0:00:02]} Kh1 {[%emt 0:00:
02]} 78. Rg5 {[%emt 0:00:01]} Rf4 {[%emt 0:00:03]} 79. Rg8 {[%emt 0:00:02]} Kh2
{[%emt 0:00:02]} 80. Rg7 {[%emt 0:00:01]} Kh1 {[%emt 0:00:01]} 81. Rg6 {
[%emt 0:00:01]} Ra4 {[%emt 0:00:04]} 82. Rg8 {[%emt 0:00:02]} h2 {[%emt 0:00:
04]} 83. Kf2 {[%emt 0:00:03]} Ra2+ {[%emt 0:00:01]} 84. Kf1 {[%emt 0:00:01]}
Ra1+ {[%emt 0:00:01]} 85. Kf2 {[%emt 0:00:00]} Rg1 {[%emt 0:00:01]} 86. Rh8 {
[%emt 0:00:04]} Rg2+ {[%emt 0:00:02]} 87. Kf1 {[%emt 0:00:01]} Rg5 {[%emt 0:00:
01]} 88. Kf2 {[%emt 0:00:05]} Rf5+ {[%emt 0:00:01]} 89. Ke2 {[%emt 0:00:02]}
Kg2 {[%emt 0:00:04]} 90. Rg8+ {[%emt 0:00:01]} Kh3 {[%emt 0:00:01]} 91. Rh8+ {
[%emt 0:00:02]} Kg3 {[%emt 0:00:01]} 92. Rg8+ {[%emt 0:00:02]} Kh4 {[%emt 0:00:
02]} 0-1

[Event "FIDE Women World Blitz 2021"]
[Site "Warsaw"]
[Date "2021.12.30"]
[Round "14.35"]
[White "Doluhanova, Evgeniya"]
[Black "Loskutova, Viktoriya"]
[Result "0-1"]
[ECO "D94"]
[WhiteElo "2237"]
[BlackElo "2195"]
[Annotator "NA"]
[PlyCount "116"]
[EventDate "2021.12.29"]
[EventType "swiss"]
[EventCountry "POL"]
[Tiebreak "Cut1 Buchholz"]
[SourceTitle "playchess.com"]
[Source "ChessBase"]
[SourceQuality "1"]
[TimeControl "180+2"]

1. Nf3 {[%emt 0:00:03]} Nf6 {[%emt 0:00:01]} 2. b3 {[%emt 0:00:01]} d5 {
[%emt 0:00:03]} 3. Bb2 {[%emt 0:00:01]} g6 {[%emt 0:00:01]} 4. e3 {[%emt 0:00:
02]} Bg7 {[%emt 0:00:02]} 5. c4 {[%emt 0:00:01]} c6 {[%emt 0:00:07]} 6. Be2 {
[%emt 0:00:05]} O-O {[%emt 0:00:02]} 7. O-O {[%emt 0:00:02]} Re8 {[%emt 0:00:
16]} 8. d4 {[%emt 0:00:02]} Ne4 {[%emt 0:00:06]} 9. Nc3 {[%emt 0:00:04]} Nxc3 {
[%emt 0:00:08]} 10. Bxc3 {[%emt 0:00:02]} Nd7 {[%emt 0:00:02]} 11. cxd5 {
[%emt 0:00:03]} cxd5 {[%emt 0:00:00]} 12. Rc1 {[%emt 0:00:04]} Nf6 {[%emt 0:00:
02]} 13. Bd3 {[%emt 0:00:12]} Bd7 {[%emt 0:00:47]} 14. Ne5 {[%emt 0:00:06]} Rc8
{[%emt 0:00:01]} 15. Qe2 {[%emt 0:00:16]} a6 {[%emt 0:00:08]} 16. Bb2 {[%emt 0:
00:12]} Qa5 {[%emt 0:00:41]} 17. Nxd7 {[%emt 0:00:55]} Nxd7 {[%emt 0:00:02]}
18. a3 {[%emt 0:00:04]} Qb6 {[%emt 0:00:08]} 19. b4 {[%emt 0:00:07]} Nb8 {
[%emt 0:00:23]} 20. h3 {[%emt 0:00:06]} Nc6 {[%emt 0:00:17]} 21. Rc5 {[%emt 0:
00:02]} e6 {[%emt 0:00:04]} 22. Rfc1 {[%emt 0:00:03]} Bf8 {[%emt 0:00:04]} 23.
R5c2 {[%emt 0:00:04]} Na7 {[%emt 0:00:02]} 24. Bc3 {[%emt 0:00:24]} Nb5 {
[%emt 0:00:06]} 25. Bxb5 {[%emt 0:00:12]} axb5 {[%emt 0:00:01]} 26. Bb2 {
[%emt 0:00:03]} Rc4 {[%emt 0:00:02]} 27. e4 {[%emt 0:00:12]} Rec8 {[%emt 0:00:
03]} 28. exd5 {[%emt 0:00:04]} exd5 {[%emt 0:00:01]} 29. Rc3 {[%emt 0:00:12]}
Bg7 {[%emt 0:00:02]} 30. Rxc4 {[%emt 0:00:03]} bxc4 {[%emt 0:00:03]} 31. Qe3 {
[%emt 0:00:07]} Qc6 {[%emt 0:00:05]} 32. Bc3 {[%emt 0:00:02]} b5 {[%emt 0:00:
00]} 33. Re1 {[%emt 0:00:03]} Ra8 {[%emt 0:00:02]} 34. Bb2 {[%emt 0:00:02]} c3
{[%emt 0:00:06]} 35. Qxc3 {[%emt 0:00:04]} Qxc3 {[%emt 0:00:01]} 36. Bxc3 {
[%emt 0:00:02]} Rxa3 {[%emt 0:00:01]} 37. Re8+ {[%emt 0:00:01]} Bf8 {[%emt 0:
00:01]} 38. Bd2 {[%emt 0:00:02]} Kg7 {[%emt 0:00:02]} 39. Bf4 {[%emt 0:00:03]}
Bxb4 {[%emt 0:00:04]} 40. Be5+ {[%emt 0:00:01]} f6 {[%emt 0:00:00]} 41. Bf4 {
[%emt 0:00:04]} g5 {[%emt 0:00:01]} 42. Be3 {[%emt 0:00:02]} Ra1+ {[%emt 0:00:
03]} 43. Kh2 {[%emt 0:00:01]} Bc3 {[%emt 0:00:01]} 44. Rd8 {[%emt 0:00:03]} b4
{[%emt 0:00:01]} 45. Rb8 {[%emt 0:00:03]} Rb1 {[%emt 0:00:02]} 46. h4 {[%emt 0:
00:02]} h6 {[%emt 0:00:01]} 47. hxg5 {[%emt 0:00:01]} hxg5 {[%emt 0:00:01]} 48.
Kh3 {[%emt 0:00:01]} Kg6 {[%emt 0:00:02]} 49. Kg4 {[%emt 0:00:02]} f5+ {
[%emt 0:00:01]} 50. Kf3 {[%emt 0:00:01]} f4 {[%emt 0:00:01]} 51. Rb6+ {[%emt 0:
00:02]} Kf5 {[%emt 0:00:00]} 52. Rb5 {[%emt 0:00:01]} fxe3 {[%emt 0:00:02]} 53.
fxe3 {[%emt 0:00:01]} g4+ {[%emt 0:00:03]} 54. Ke2 {[%emt 0:00:01]} Ke4 {
[%emt 0:00:00]} 55. Rb8 {[%emt 0:00:02]} Re1+ {[%emt 0:00:02]} 56. Kf2 {
[%emt 0:00:01]} g3+ {[%emt 0:00:02]} 57. Kxg3 {[%emt 0:00:01]} Rxe3+ {[%emt 0:
00:01]} 58. Kg4 {[%emt 0:00:01]} Kxd4 {[%emt 0:00:02]} 0-1

[Event "FIDE Women World Blitz 2021"]
[Site "Warsaw"]
[Date "2021.12.30"]
[Round "14.36"]
[White "Smietanska, Wiktoria"]
[Black "Michna, Marta"]
[Result "0-1"]
[ECO "A54"]
[WhiteElo "1765"]
[BlackElo "2312"]
[Annotator "NA"]
[PlyCount "137"]
[EventDate "2021.12.29"]
[EventType "swiss"]
[EventCountry "POL"]
[Tiebreak "Cut1 Buchholz"]
[SourceTitle "playchess.com"]
[Source "ChessBase"]
[SourceQuality "1"]
[TimeControl "180+2"]

1. c4 {[%emt 0:00:01]} Nf6 {[%emt 0:00:01]} 2. Nc3 {[%emt 0:00:01]} d6 {
[%emt 0:00:01]} 3. g3 {[%emt 0:00:06]} Nbd7 {[%emt 0:00:01]} 4. Bg2 {[%emt 0:
00:01]} e5 {[%emt 0:00:00]} 5. d4 {[%emt 0:00:04]} Be7 {[%emt 0:00:03]} 6. Nf3
{[%emt 0:00:08]} O-O {[%emt 0:00:01]} 7. O-O {[%emt 0:00:03]} c6 {[%emt 0:00:
01]} 8. d5 {[%emt 0:00:15]} c5 {[%emt 0:00:04]} 9. e4 {[%emt 0:00:02]} Ne8 {
[%emt 0:00:01]} 10. Rb1 {[%emt 0:00:04]} g6 {[%emt 0:00:04]} 11. b4 {[%emt 0:
00:02]} cxb4 {[%emt 0:00:10]} 12. Rxb4 {[%emt 0:00:02]} Nc5 {[%emt 0:00:01]}
13. Be3 {[%emt 0:00:09]} b6 {[%emt 0:00:01]} 14. a4 {[%emt 0:00:04]} Ng7 {
[%emt 0:00:03]} 15. Rb1 {[%emt 0:00:10]} f5 {[%emt 0:00:04]} 16. exf5 {[%emt 0:
00:06]} Bxf5 {[%emt 0:00:14]} 17. Ra1 {[%emt 0:00:09]} Bd3 {[%emt 0:00:19]} 18.
Re1 {[%emt 0:00:08]} Bxc4 {[%emt 0:00:01]} 19. a5 {[%emt 0:00:34]} Nb3 {
[%emt 0:00:02]} 20. Nd2 {[%emt 0:00:37]} Nxd2 {[%emt 0:00:07]} 21. Qxd2 {
[%emt 0:00:02]} b5 {[%emt 0:00:15]} 22. a6 {[%emt 0:00:07]} Nf5 {[%emt 0:00:04]
} 23. Reb1 {[%emt 0:00:11]} Qd7 {[%emt 0:00:08]} 24. Ra5 {[%emt 0:00:21]} Nxe3
{[%emt 0:00:12]} 25. fxe3 {[%emt 0:00:02]} Rfb8 {[%emt 0:00:02]} 26. Rb4 {
[%emt 0:00:07]} Bd8 {[%emt 0:00:11]} 27. Ra1 {[%emt 0:00:02]} Bb6 {[%emt 0:00:
01]} 28. Rab1 {[%emt 0:00:04]} Bc5 {[%emt 0:00:03]} 29. R4b2 {[%emt 0:00:02]}
Rb6 {[%emt 0:00:13]} 30. Ne4 {[%emt 0:00:04]} Rf8 {[%emt 0:00:13]} 31. Nxc5 {
[%emt 0:00:03]} dxc5 {[%emt 0:00:01]} 32. e4 {[%emt 0:00:01]} Rxa6 {[%emt 0:00:
07]} 33. Qe3 {[%emt 0:00:03]} Qd6 {[%emt 0:00:05]} 34. Bf1 {[%emt 0:00:04]}
Bxf1 {[%emt 0:00:15]} 35. Rxf1 {[%emt 0:00:04]} Rxf1+ {[%emt 0:00:11]} 36. Kxf1
{[%emt 0:00:01]} Rb6 {[%emt 0:00:05]} 37. Qf3 {[%emt 0:00:06]} Qf6 {[%emt 0:00:
04]} 38. Qxf6 {[%emt 0:00:04]} Rxf6+ {[%emt 0:00:01]} 39. Ke2 {[%emt 0:00:02]}
a6 {[%emt 0:00:01]} 40. Rc2 {[%emt 0:00:02]} c4 {[%emt 0:00:01]} 41. Ra2 {
[%emt 0:00:01]} Kf8 {[%emt 0:00:03]} 42. Ke3 {[%emt 0:00:03]} Ke7 {[%emt 0:00:
02]} 43. Ra5 {[%emt 0:00:02]} Rb6 {[%emt 0:00:05]} 44. Ra1 {[%emt 0:00:02]} b4
{[%emt 0:00:05]} 45. Rc1 {[%emt 0:00:02]} b3 {[%emt 0:00:04]} 46. Kd2 {[%emt 0:
00:02]} b2 {[%emt 0:00:16]} 47. Rb1 {[%emt 0:00:01]} Rb3 {[%emt 0:00:02]} 48.
Kc2 {[%emt 0:00:02]} Re3 {[%emt 0:00:04]} 49. Rxb2 {[%emt 0:00:03]} Rxe4 {
[%emt 0:00:02]} 50. Kc3 {[%emt 0:00:01]} Kd6 {[%emt 0:00:01]} 51. Rb6+ {
[%emt 0:00:02]} Kxd5 {[%emt 0:00:01]} 52. Rxa6 {[%emt 0:00:01]} Re3+ {[%emt 0:
00:02]} 53. Kd2 {[%emt 0:00:01]} Rb3 {[%emt 0:00:03]} 54. Ra7 {[%emt 0:00:02]}
Rb2+ {[%emt 0:00:02]} 55. Kc3 {[%emt 0:00:01]} Rxh2 {[%emt 0:00:01]} 56. Ra5+ {
[%emt 0:00:01]} Ke4 {[%emt 0:00:01]} 57. Kxc4 {[%emt 0:00:01]} Rg2 {[%emt 0:00:
06]} 58. Ra3 {[%emt 0:00:02]} Re2 {[%emt 0:00:04]} 59. Ra7 {[%emt 0:00:01]} h5
{[%emt 0:00:02]} 60. Rg7 {[%emt 0:00:02]} Kf5 {[%emt 0:00:01]} 61. Rf7+ {
[%emt 0:00:01]} Kg4 {[%emt 0:00:02]} 62. Rg7 {[%emt 0:00:03]} g5 {[%emt 0:00:
01]} 63. Rh7 {[%emt 0:00:01]} Re3 {[%emt 0:00:01]} 64. Kd5 {[%emt 0:00:02]}
Rxg3 {[%emt 0:00:02]} 65. Kxe5 {[%emt 0:00:01]} h4 {[%emt 0:00:01]} 66. Ke4 {
[%emt 0:00:02]} h3 {[%emt 0:00:01]} 67. Ra7 {[%emt 0:00:02]} h2 {[%emt 0:00:06]
} 68. Ra1 {[%emt 0:00:02]} Rg1 {[%emt 0:00:01]} 69. Kd4 {[%emt 0:00:13]} 0-1